[Event "*** Titled Tuesday Blitz"]
[Site "Chess.com"]
[Date "2021.03.09"]
[Round "1"]
[White "GelmanAlexander"]
[Black "MillyNeuf"]
[Result "1-0"]
[WhiteElo "2589"]
[BlackElo "2288"]
[TimeControl "180+1"]
[EndTime "10:06:57 PST"]
[Termination "GelmanAlexander won on time"]

1. d4 {[%clk 0:03:00.9]} 1... Nf6 {[%clk 0:02:58.4]} 2. Nc3 {[%clk 0:03:00.5]}
2... d5 {[%clk 0:02:58.3]} 3. Bf4 {[%clk 0:03:00.6]} 3... c5 {[%clk 0:02:52.4]}
4. e3 {[%clk 0:03:00.5]} 4... a6 {[%clk 0:02:52.3]} 5. Nf3 {[%clk 0:03:00.4]}
5... Nc6 {[%clk 0:02:51]} 6. Ne5 {[%clk 0:03:00.6]} 6... cxd4 {[%clk 0:02:46.2]}
7. exd4 {[%clk 0:03:00.4]} 7... Bf5 {[%clk 0:02:45.7]} 8. g4 {[%clk 0:03:00.2]}
8... Bg6 {[%clk 0:02:32.6]} 9. h4 {[%clk 0:02:58.8]} 9... h5 {[%clk 0:01:55.5]}
10. g5 {[%clk 0:02:53.8]} 10... Nxe5 {[%clk 0:01:27.7]} 11. dxe5 {[%clk
0:02:36.7]} 11... Ne4 {[%clk 0:01:17.9]} 12. Nxd5 {[%clk 0:02:10.7]} 12... e6
{[%clk 0:01:07.9]} 13. Ne3 {[%clk 0:02:10.6]} 13... Bb4+ {[%clk 0:00:53.4]} 14.
c3 {[%clk 0:02:10]} 14... Nxc3 {[%clk 0:00:26.1]} 15. bxc3 {[%clk 0:02:09.8]}
15... Bxc3+ {[%clk 0:00:25.3]} 16. Ke2 {[%clk 0:02:10.3]} 16... Bxa1 {[%clk
0:00:18.5]} 17. Qxa1 {[%clk 0:01:57.9]} 17... Qd3+ {[%clk 0:00:18.4]} 18. Ke1
{[%clk 0:01:58.2]} 18... Qb1+ {[%clk 0:00:09.3]} 19. Qxb1 {[%clk 0:01:57.3]}
19... Bxb1 {[%clk 0:00:10.2]} 20. Bc4 {[%clk 0:01:52.7]} 20... O-O {[%clk
0:00:09.6]} 21. Ke2 {[%clk 0:01:52.5]} 21... Bh7 {[%clk 0:00:08.9]} 22. Bb3
{[%clk 0:01:44.9]} 22... Rad8 {[%clk 0:00:07.7]} 23. Nc4 {[%clk 0:01:42.4]}
23... Bd3+ {[%clk 0:00:07.2]} 24. Ke3 {[%clk 0:01:43]} 24... Bxc4 {[%clk
0:00:04.9]} 25. Bxc4 {[%clk 0:01:43.9]} 25... b5 {[%clk 0:00:05.8]} 26. Be2
{[%clk 0:01:43.8]} 26... Rc8 {[%clk 0:00:04.7]} 27. Bxh5 {[%clk 0:01:39.5]}
27... Rc3+ {[%clk 0:00:04.8]} 28. Ke4 {[%clk 0:01:31.3]} 28... Rfc8 {[%clk
0:00:04.2]} 29. Be3 {[%clk 0:01:24.4]} 29... R8c4+ {[%clk 0:00:04]} 30. Kf3
{[%clk 0:01:24.9]} 30... g6 {[%clk 0:00:03.7]} 31. Bg4 {[%clk 0:01:25]} 31...
Rc2 {[%clk 0:00:02.9]} 32. h5 {[%clk 0:01:12.4]} 32... gxh5 {[%clk 0:00:03.8]}
33. Bxh5 {[%clk 0:01:12.7]} 33... Rxa2 {[%clk 0:00:04.2]} 34. g6 {[%clk
0:01:13.2]} 34... fxg6 {[%clk 0:00:03]} 35. Bxg6 {[%clk 0:01:14.1]} 35... b4
{[%clk 0:00:02.7]} 36. Bh7+ {[%clk 0:01:04.7]} 36... Kf8 {[%clk 0:00:02.6]} 37.
Bd3 {[%clk 0:01:05.6]} 37... Rc3 {[%clk 0:00:02.2]} 38. Bb1 {[%clk 0:00:59.6]}
38... Rb2 {[%clk 0:00:02.1]} 39. Bg6 {[%clk 0:00:47]} 39... b3 {[%clk
0:00:02.3]} 40. Rh7 {[%clk 0:00:47]} 40... Rcc2 {[%clk 0:00:01.2]} 41. Bh6+
{[%clk 0:00:46.9]} 1-0

[Event "*** Titled Tuesday Blitz"]
[Site "Chess.com"]
[Date "2021.03.09"]
[Round "1"]
[White "Kildepiotr"]
[Black "tusplingher"]
[Result "1/2-1/2"]
[WhiteElo "2569"]
[BlackElo "2287"]
[TimeControl "180+1"]
[EndTime "10:06:58 PST"]
[Termination "Game drawn by repetition"]

1. Nf3 {[%clk 0:02:42.8]} 1... g6 {[%clk 0:02:58.7]} 2. g3 {[%clk 0:02:37.9]}
2... Bg7 {[%clk 0:02:58.3]} 3. d4 {[%clk 0:02:38.3]} 3... c5 {[%clk 0:02:57.6]}
4. Bg2 {[%clk 0:02:38.7]} 4... cxd4 {[%clk 0:02:57.7]} 5. Nxd4 {[%clk
0:02:39.6]} 5... Nc6 {[%clk 0:02:57.4]} 6. Nb3 {[%clk 0:02:38]} 6... Nf6 {[%clk
0:02:52.4]} 7. O-O {[%clk 0:02:38.9]} 7... O-O {[%clk 0:02:51.2]} 8. c4 {[%clk
0:02:39.4]} 8... Kh8 {[%clk 0:02:52.1]} 9. Nc3 {[%clk 0:02:39]} 9... d6 {[%clk
0:02:51.6]} 10. Nd5 {[%clk 0:02:36.7]} 10... Be6 {[%clk 0:02:49.5]} 11. Bg5
{[%clk 0:02:35.2]} 11... Bxd5 {[%clk 0:02:43.4]} 12. cxd5 {[%clk 0:02:36.1]}
12... Ne5 {[%clk 0:02:38.2]} 13. Rc1 {[%clk 0:02:34.8]} 13... Rc8 {[%clk
0:02:37.1]} 14. Qd4 {[%clk 0:02:27.1]} 14... b6 {[%clk 0:02:23.6]} 15. Rxc8
{[%clk 0:02:25.8]} 15... Qxc8 {[%clk 0:02:23.1]} 16. Qa4 {[%clk 0:02:15.7]}
16... Qb7 {[%clk 0:02:14.4]} 17. Rc1 {[%clk 0:02:13.9]} 17... h6 {[%clk
0:02:03.3]} 18. Be3 {[%clk 0:02:07.8]} 18... Nxd5 {[%clk 0:01:47.9]} 19. Rd1
{[%clk 0:02:02.7]} 19... e6 {[%clk 0:01:45.3]} 20. Bxd5 {[%clk 0:01:52.7]} 20...
exd5 {[%clk 0:01:44.8]} 21. Qb5 {[%clk 0:01:52.4]} 21... Nc4 {[%clk 0:01:40.5]}
22. Bd4 {[%clk 0:01:52.4]} 22... a6 {[%clk 0:01:14.8]} 23. Bxg7+ {[%clk
0:01:51.9]} 23... Kxg7 {[%clk 0:01:14.6]} 24. Qxd5 {[%clk 0:01:52]} 24... Qxd5
{[%clk 0:01:14.4]} 25. Rxd5 {[%clk 0:01:52.9]} 25... Rd8 {[%clk 0:01:12]} 26.
Nd4 {[%clk 0:01:32.8]} 26... Nxb2 {[%clk 0:01:06.9]} 27. Nc6 {[%clk 0:01:32.7]}
27... Rc8 {[%clk 0:01:06.2]} 28. Nb4 {[%clk 0:01:27.4]} 28... a5 {[%clk
0:00:55.5]} 29. Nd3 {[%clk 0:01:27.2]} 29... Nc4 {[%clk 0:00:55.3]} 30. f4
{[%clk 0:01:22.3]} 30... Kf6 {[%clk 0:00:49.2]} 31. Kf2 {[%clk 0:01:21.1]} 31...
Ke6 {[%clk 0:00:48.7]} 32. e4 {[%clk 0:01:21.4]} 32... Nd2 {[%clk 0:00:28.9]}
33. Ke3 {[%clk 0:01:15.9]} 33... Nf1+ {[%clk 0:00:27.5]} 34. Kd4 {[%clk
0:01:15]} 34... Nxh2 {[%clk 0:00:27.6]} 35. f5+ {[%clk 0:01:15]} 35... gxf5
{[%clk 0:00:24.1]} 36. exf5+ {[%clk 0:01:14.2]} 36... Ke7 {[%clk 0:00:20.5]} 37.
Rb5 {[%clk 0:01:12]} 37... Nf3+ {[%clk 0:00:19.2]} 38. Ke3 {[%clk 0:01:09.6]}
38... Ng5 {[%clk 0:00:18.3]} 39. Rxb6 {[%clk 0:01:09.1]} 39... Rc2 {[%clk
0:00:18.1]} 40. a4 {[%clk 0:00:50.9]} 40... Ra2 {[%clk 0:00:18]} 41. Nf4 {[%clk
0:00:49.2]} 41... Rxa4 {[%clk 0:00:17.2]} 42. Nd5+ {[%clk 0:00:44.7]} 42... Kd7
{[%clk 0:00:17.4]} 43. Nf6+ {[%clk 0:00:44.7]} 43... Kc7 {[%clk 0:00:17.5]} 44.
Nd5+ {[%clk 0:00:44.7]} 44... Kd7 {[%clk 0:00:17.9]} 45. Nf6+ {[%clk 0:00:41.1]}
45... Kc7 {[%clk 0:00:18.1]} 46. Nd5+ {[%clk 0:00:41.2]} 46... Kd7 {[%clk
0:00:18.5]} 1/2-1/2

[Event "*** Titled Tuesday Blitz"]
[Site "Chess.com"]
[Date "2021.03.09"]
[Round "1"]
[White "zajka-molotok"]
[Black "annacramling"]
[Result "1-0"]
[WhiteElo "2500"]
[BlackElo "2030"]
[TimeControl "180+1"]
[EndTime "10:06:58 PST"]
[Termination "zajka-molotok won on time"]

1. b4 {[%clk 0:03:00.9]} 1... e6 {[%clk 0:02:51.5]} 2. Bb2 {[%clk 0:03:00.8]}
2... Nf6 {[%clk 0:02:51.1]} 3. b5 {[%clk 0:03:00.4]} 3... d5 {[%clk 0:02:49.9]}
4. e3 {[%clk 0:02:59.8]} 4... Be7 {[%clk 0:02:31]} 5. Nf3 {[%clk 0:02:59]} 5...
O-O {[%clk 0:02:30.7]} 6. Be2 {[%clk 0:02:58.9]} 6... c6 {[%clk 0:02:29]} 7. a4
{[%clk 0:02:55.2]} 7... Bd7 {[%clk 0:02:27]} 8. O-O {[%clk 0:02:49.6]} 8... c5
{[%clk 0:02:27]} 9. c4 {[%clk 0:02:48.3]} 9... dxc4 {[%clk 0:02:24.5]} 10. Bxc4
{[%clk 0:02:49.2]} 10... Qc7 {[%clk 0:02:24.5]} 11. Nc3 {[%clk 0:02:40.2]} 11...
a6 {[%clk 0:02:21.9]} 12. Qb3 {[%clk 0:02:32.4]} 12... b6 {[%clk 0:02:13.7]} 13.
d4 {[%clk 0:02:23.1]} 13... Rc8 {[%clk 0:02:01.3]} 14. d5 {[%clk 0:02:16.4]}
14... e5 {[%clk 0:01:25.6]} 15. e4 {[%clk 0:01:54.1]} 15... Bd6 {[%clk 0:01:25]}
16. Rfe1 {[%clk 0:01:50.4]} 16... Bg4 {[%clk 0:01:22.4]} 17. Nd2 {[%clk
0:01:46.4]} 17... a5 {[%clk 0:01:13.8]} 18. Bd3 {[%clk 0:01:40.4]} 18... Nbd7
{[%clk 0:01:08.5]} 19. Nc4 {[%clk 0:01:40.2]} 19... Re8 {[%clk 0:01:03.5]} 20.
Qc2 {[%clk 0:01:35.7]} 20... Bh5 {[%clk 0:01:00.6]} 21. Nd1 {[%clk 0:01:31.6]}
21... Bg6 {[%clk 0:00:51.4]} 22. Nde3 {[%clk 0:01:29.2]} 22... Nf8 {[%clk
0:00:42.6]} 23. Nxd6 {[%clk 0:01:17.9]} 23... Qxd6 {[%clk 0:00:40.9]} 24. Nc4
{[%clk 0:01:18.5]} 24... Qc7 {[%clk 0:00:30.8]} 25. d6 {[%clk 0:01:10]} 25...
Qd8 {[%clk 0:00:24.7]} 26. Bxe5 {[%clk 0:01:07.1]} 26... Rxe5 {[%clk 0:00:08.5]}
27. Nxe5 {[%clk 0:01:06.2]} 27... Qxd6 {[%clk 0:00:08.8]} 28. Nc4 {[%clk
0:00:58.4]} 28... Qc7 {[%clk 0:00:08.8]} 29. e5 {[%clk 0:00:54.9]} 29... Nd5
{[%clk 0:00:07.3]} 30. Bxg6 {[%clk 0:00:53.8]} 30... Nxg6 {[%clk 0:00:06.9]} 31.
Rad1 {[%clk 0:00:52]} 31... Nb4 {[%clk 0:00:05.8]} 32. Qe4 {[%clk 0:00:48.7]}
32... Rd8 {[%clk 0:00:05.1]} 33. h3 {[%clk 0:00:44.2]} 33... h6 {[%clk
0:00:04.7]} 34. Rd6 {[%clk 0:00:41.9]} 34... Rxd6 {[%clk 0:00:04.6]} 35. exd6
{[%clk 0:00:41.3]} 35... Qd7 {[%clk 0:00:04.5]} 36. Qe8+ {[%clk 0:00:40.4]}
36... Qxe8 {[%clk 0:00:04.9]} 37. Rxe8+ {[%clk 0:00:40.1]} 37... Kh7 {[%clk
0:00:05.5]} 38. d7 {[%clk 0:00:40]} 1-0

[Event "*** Titled Tuesday Blitz"]
[Site "Chess.com"]
[Date "2021.03.09"]
[Round "1"]
[White "DamianoLew95"]
[Black "AurumO"]
[Result "1-0"]
[WhiteElo "2491"]
[BlackElo "1977"]
[TimeControl "180+1"]
[EndTime "10:07:00 PST"]
[Termination "DamianoLew95 won on time"]

1. e4 {[%clk 0:02:31.5]} 1... c5 {[%clk 0:02:59]} 2. Nf3 {[%clk 0:02:31.7]} 2...
Nc6 {[%clk 0:02:58.5]} 3. Bb5 {[%clk 0:02:28.2]} 3... g6 {[%clk 0:02:54.9]} 4.
Bxc6 {[%clk 0:02:28.4]} 4... dxc6 {[%clk 0:02:52.7]} 5. O-O {[%clk 0:02:29.3]}
5... Bg7 {[%clk 0:02:50.8]} 6. Re1 {[%clk 0:02:28.7]} 6... e5 {[%clk 0:02:50.1]}
7. d3 {[%clk 0:02:28.8]} 7... Ne7 {[%clk 0:02:47.8]} 8. Be3 {[%clk 0:02:29.3]}
8... b6 {[%clk 0:02:46.7]} 9. a3 {[%clk 0:02:30.1]} 9... O-O {[%clk 0:02:46.3]}
10. Nbd2 {[%clk 0:02:29.4]} 10... h6 {[%clk 0:02:40.6]} 11. b4 {[%clk
0:02:29.1]} 11... cxb4 {[%clk 0:02:38.3]} 12. axb4 {[%clk 0:02:30]} 12... Be6
{[%clk 0:02:33.6]} 13. Nc4 {[%clk 0:02:19.8]} 13... Bxc4 {[%clk 0:02:15.1]} 14.
dxc4 {[%clk 0:02:20.7]} 14... Qc7 {[%clk 0:02:14.9]} 15. Ra6 {[%clk 0:02:05.1]}
15... Rfd8 {[%clk 0:01:56.4]} 16. Qa1 {[%clk 0:02:04.2]} 16... Nc8 {[%clk
0:01:43.3]} 17. c5 {[%clk 0:01:56.6]} 17... Rb8 {[%clk 0:01:35.3]} 18. Qc3
{[%clk 0:01:21.6]} 18... Ne7 {[%clk 0:01:15.4]} 19. Rea1 {[%clk 0:00:58]} 19...
Rb7 {[%clk 0:01:11.2]} 20. h3 {[%clk 0:00:55.8]} 20... Kh7 {[%clk 0:01:04.2]}
21. Qc4 {[%clk 0:00:42.6]} 21... Ng8 {[%clk 0:01:00.7]} 22. cxb6 {[%clk
0:00:33.8]} 22... axb6 {[%clk 0:00:57.1]} 23. b5 {[%clk 0:00:34.3]} 23... c5
{[%clk 0:00:40.8]} 24. Ne1 {[%clk 0:00:34.1]} 24... Nf6 {[%clk 0:00:37.3]} 25.
Nd3 {[%clk 0:00:34.3]} 25... Nh5 {[%clk 0:00:15.5]} 26. g3 {[%clk 0:00:34.2]}
26... Nf6 {[%clk 0:00:13.8]} 27. Kg2 {[%clk 0:00:34.3]} 27... Qe7 {[%clk
0:00:08.9]} 28. Nc1 {[%clk 0:00:32.9]} 28... Qc7 {[%clk 0:00:06.6]} 29. Ne2
{[%clk 0:00:32.9]} 29... Qd7 {[%clk 0:00:06]} 30. Nc3 {[%clk 0:00:32.3]} 30...
Qc7 {[%clk 0:00:02.8]} 31. Ra8 {[%clk 0:00:26.8]} 31... Rxa8 {[%clk 0:00:01.7]}
32. Rxa8 {[%clk 0:00:27.7]} 32... Qd7 {[%clk 0:00:02.2]} 33. Nd5 {[%clk
0:00:25.8]} 33... Nxd5 {[%clk 0:00:01.8]} 34. Qxd5 {[%clk 0:00:26.7]} 34... Qxd5
{[%clk 0:00:01.7]} 35. exd5 {[%clk 0:00:27.6]} 35... f5 {[%clk 0:00:01.2]} 36.
c4 {[%clk 0:00:27.4]} 1-0

[Event "*** Titled Tuesday Blitz"]
[Site "Chess.com"]
[Date "2021.03.09"]
[Round "1"]
[White "fabianvivasz"]
[Black "MoonlighT89"]
[Result "0-1"]
[WhiteElo "2300"]
[BlackElo "2610"]
[TimeControl "180+1"]
[EndTime "10:07:07 PST"]
[Termination "MoonlighT89 won on time"]

1. e4 {[%clk 0:02:59.7]} 1... c5 {[%clk 0:02:59.9]} 2. Nf3 {[%clk 0:02:55.4]}
2... e6 {[%clk 0:03:00.2]} 3. d4 {[%clk 0:02:55.6]} 3... cxd4 {[%clk 0:03:01.1]}
4. Nxd4 {[%clk 0:02:56.1]} 4... Nc6 {[%clk 0:03:01.8]} 5. Nc3 {[%clk 0:02:55.1]}
5... Qc7 {[%clk 0:03:02.2]} 6. Be3 {[%clk 0:02:54.8]} 6... a6 {[%clk 0:03:02]}
7. Qf3 {[%clk 0:02:54.7]} 7... d6 {[%clk 0:03:02.4]} 8. O-O-O {[%clk 0:02:53.3]}
8... Bd7 {[%clk 0:02:59.8]} 9. Qg3 {[%clk 0:02:51.5]} 9... Nf6 {[%clk 0:02:58]}
10. f4 {[%clk 0:02:46]} 10... b5 {[%clk 0:02:56.5]} 11. a3 {[%clk 0:02:15.7]}
11... b4 {[%clk 0:02:26.2]} 12. axb4 {[%clk 0:02:09.2]} 12... Nxb4 {[%clk
0:02:27.1]} 13. Bd3 {[%clk 0:01:12.5]} 13... Rb8 {[%clk 0:01:42.3]} 14. Nb3
{[%clk 0:00:57.1]} 14... g6 {[%clk 0:01:02.3]} 15. Kb1 {[%clk 0:00:20.7]} 15...
Bg7 {[%clk 0:00:54.5]} 16. e5 {[%clk 0:00:21]} 16... dxe5 {[%clk 0:00:52.6]} 17.
fxe5 {[%clk 0:00:21.6]} 17... Nfd5 {[%clk 0:00:52.8]} 18. Nxd5 {[%clk
0:00:21.1]} 18... Nxd5 {[%clk 0:00:53.7]} 19. Bd4 {[%clk 0:00:09.9]} 19... a5
{[%clk 0:00:53.8]} 20. Nc5 {[%clk 0:00:05.7]} 20... Bc6 {[%clk 0:00:43.5]} 21.
Na6 {[%clk 0:00:05.3]} 21... Qb7 {[%clk 0:00:42.2]} 22. Nxb8 {[%clk 0:00:05.4]}
22... Qxb8 {[%clk 0:00:43.1]} 23. Rhe1 {[%clk 0:00:05.2]} 23... O-O {[%clk
0:00:43.2]} 24. h4 {[%clk 0:00:04.8]} 24... a4 {[%clk 0:00:40.3]} 25. Bc4 {[%clk
0:00:03.8]} 25... Rc8 {[%clk 0:00:31.8]} 26. Qa3 {[%clk 0:00:04]} 26... Bf8
{[%clk 0:00:26.3]} 27. Qa2 {[%clk 0:00:02.7]} 27... Nb4 {[%clk 0:00:24.6]} 28.
Qa1 {[%clk 0:00:02.4]} 28... Bxg2 {[%clk 0:00:18.4]} 29. Bc3 {[%clk 0:00:01.2]}
29... Rxc4 {[%clk 0:00:17.1]} 30. Qxa4 {[%clk 0:00:01.3]} 30... Bc6 {[%clk
0:00:13.4]} 0-1

[Event "*** Titled Tuesday Blitz"]
[Site "Chess.com"]
[Date "2021.03.09"]
[Round "1"]
[White "ChessQueen"]
[Black "ega2006"]
[Result "1-0"]
[WhiteElo "2784"]
[BlackElo "2415"]
[TimeControl "180+1"]
[EndTime "10:07:08 PST"]
[Termination "ChessQueen won on time"]

1. e4 {[%clk 0:03:00.7]} 1... c5 {[%clk 0:02:59.3]} 2. c3 {[%clk 0:03:00.4]}
2... d5 {[%clk 0:02:58.8]} 3. exd5 {[%clk 0:03:00.3]} 3... Qxd5 {[%clk
0:02:59.3]} 4. d4 {[%clk 0:03:00.9]} 4... Nf6 {[%clk 0:02:58.1]} 5. Nf3 {[%clk
0:03:01.4]} 5... Nc6 {[%clk 0:02:57.7]} 6. Be2 {[%clk 0:03:00.3]} 6... e6 {[%clk
0:02:55.8]} 7. O-O {[%clk 0:02:58.3]} 7... Be7 {[%clk 0:02:55.3]} 8. c4 {[%clk
0:02:56.9]} 8... Qd8 {[%clk 0:02:55.6]} 9. dxc5 {[%clk 0:02:55.9]} 9... O-O
{[%clk 0:02:55.8]} 10. Nc3 {[%clk 0:02:54.9]} 10... Bxc5 {[%clk 0:02:54.6]} 11.
Nb5 {[%clk 0:02:47.2]} 11... a6 {[%clk 0:02:49.3]} 12. Nc3 {[%clk 0:02:39.6]}
12... h6 {[%clk 0:02:21.4]} 13. a3 {[%clk 0:02:39]} 13... Nd4 {[%clk 0:02:16.7]}
14. b4 {[%clk 0:02:34]} 14... Nxf3+ {[%clk 0:02:10.9]} 15. Bxf3 {[%clk
0:02:32.6]} 15... Bd4 {[%clk 0:02:10.1]} 16. Bb2 {[%clk 0:02:24.9]} 16... e5
{[%clk 0:02:09.3]} 17. Qb3 {[%clk 0:02:20.3]} 17... Be6 {[%clk 0:01:37.4]} 18.
Bxb7 {[%clk 0:02:13.1]} 18... Qc7 {[%clk 0:01:37.3]} 19. Bd5 {[%clk 0:02:03.2]}
19... Bxd5 {[%clk 0:01:13.6]} 20. Nxd5 {[%clk 0:02:00.9]} 20... Nxd5 {[%clk
0:01:13.5]} 21. cxd5 {[%clk 0:01:47.9]} 21... Rfd8 {[%clk 0:01:04.9]} 22. Rfd1
{[%clk 0:01:45.3]} 22... Bb6 {[%clk 0:00:40.1]} 23. Rac1 {[%clk 0:01:40.2]}
23... Qe7 {[%clk 0:00:36.1]} 24. Rc6 {[%clk 0:01:34]} 24... Rd6 {[%clk
0:00:35.7]} 25. Rxd6 {[%clk 0:01:20.9]} 25... Qxd6 {[%clk 0:00:35.4]} 26. Qg3
{[%clk 0:01:20.7]} 26... f6 {[%clk 0:00:27.2]} 27. h3 {[%clk 0:01:18.4]} 27...
Rd8 {[%clk 0:00:26.6]} 28. Bc1 {[%clk 0:01:10.9]} 28... e4 {[%clk 0:00:19.3]}
29. Bf4 {[%clk 0:01:07.7]} 29... Qe7 {[%clk 0:00:19.3]} 30. Bxh6 {[%clk
0:01:05.2]} 30... Kf8 {[%clk 0:00:02.4]} 31. Bf4 {[%clk 0:01:02.5]} 31... Kg8
{[%clk 0:00:01.7]} 32. d6 {[%clk 0:01:02.2]} 32... Qe6 {[%clk 0:00:01.8]} 33.
Re1 {[%clk 0:00:46.1]} 33... Kf7 {[%clk 0:00:01.9]} 34. Qc3 {[%clk 0:00:39.1]}
34... Qd5 {[%clk 0:00:01.8]} 35. Qc2 {[%clk 0:00:35.1]} 35... Re8 {[%clk
0:00:01.4]} 36. Rd1 {[%clk 0:00:34.8]} 36... Qe6 {[%clk 0:00:01.4]} 37. d7
{[%clk 0:00:33.3]} 37... Rd8 {[%clk 0:00:01.5]} 38. Rd6 {[%clk 0:00:33.4]} 1-0

[Event "*** Titled Tuesday Blitz"]
[Site "Chess.com"]
[Date "2021.03.09"]
[Round "1"]
[White "Soltan49"]
[Black "AliKa2810"]
[Result "0-1"]
[WhiteElo "2209"]
[BlackElo "2537"]
[TimeControl "180+1"]
[EndTime "10:07:08 PST"]
[Termination "AliKa2810 won on time"]

1. d4 {[%clk 0:02:56.5]} 1... d5 {[%clk 0:02:58.4]} 2. Nf3 {[%clk 0:02:56.5]}
2... Nf6 {[%clk 0:02:56.6]} 3. c4 {[%clk 0:02:56]} 3... c6 {[%clk 0:02:56.9]} 4.
Nc3 {[%clk 0:02:52.5]} 4... dxc4 {[%clk 0:02:56.6]} 5. a4 {[%clk 0:02:51.9]}
5... Bf5 {[%clk 0:02:56.5]} 6. Bg5 {[%clk 0:02:46.5]} 6... Nbd7 {[%clk
0:02:47.8]} 7. e3 {[%clk 0:02:44.6]} 7... h6 {[%clk 0:02:40.2]} 8. Bh4 {[%clk
0:02:40.1]} 8... e6 {[%clk 0:02:06.3]} 9. Bxc4 {[%clk 0:02:39.6]} 9... Bb4
{[%clk 0:02:04.2]} 10. O-O {[%clk 0:02:38]} 10... O-O {[%clk 0:02:03.8]} 11. e4
{[%clk 0:02:17.4]} 11... Bg4 {[%clk 0:01:48.7]} 12. e5 {[%clk 0:02:00.6]} 12...
g5 {[%clk 0:01:47.9]} 13. Bg3 {[%clk 0:01:59.9]} 13... Nd5 {[%clk 0:01:43]} 14.
Ne4 {[%clk 0:01:47.1]} 14... a5 {[%clk 0:01:40.6]} 15. Qc2 {[%clk 0:01:35.9]}
15... Be7 {[%clk 0:01:30.1]} 16. Nfd2 {[%clk 0:01:31.3]} 16... N7b6 {[%clk
0:01:23.1]} 17. Bb3 {[%clk 0:01:07.5]} 17... Nb4 {[%clk 0:01:18.2]} 18. Qc3
{[%clk 0:01:07.6]} 18... N6d5 {[%clk 0:01:17]} 19. Qc4 {[%clk 0:00:51.5]} 19...
Nb6 {[%clk 0:01:16.3]} 20. Qc3 {[%clk 0:00:51.2]} 20... Be2 {[%clk 0:01:13.9]}
21. Rfe1 {[%clk 0:00:41.8]} 21... N6d5 {[%clk 0:01:13.7]} 22. Bxd5 {[%clk
0:00:42]} 22... Nxd5 {[%clk 0:01:13.4]} 23. Qb3 {[%clk 0:00:41.3]} 23... Ba6
{[%clk 0:01:01.7]} 24. Qf3 {[%clk 0:00:22.8]} 24... Kg7 {[%clk 0:00:51.4]} 25.
Qh5 {[%clk 0:00:20.5]} 25... Qe8 {[%clk 0:00:50.9]} 26. Rac1 {[%clk 0:00:17]}
26... f5 {[%clk 0:00:34.5]} 27. exf6+ {[%clk 0:00:16.6]} 27... Nxf6 {[%clk
0:00:34.5]} 28. Qxe8 {[%clk 0:00:13.9]} 28... Raxe8 {[%clk 0:00:34.3]} 29. Nc5
{[%clk 0:00:09.8]} 29... Bxc5 {[%clk 0:00:23.7]} 30. Rxc5 {[%clk 0:00:09.6]}
30... Nd5 {[%clk 0:00:20.5]} 31. Nf3 {[%clk 0:00:07.5]} 31... Nb4 {[%clk
0:00:18.4]} 0-1

[Event "*** Titled Tuesday Blitz"]
[Site "Chess.com"]
[Date "2021.03.09"]
[Round "1"]
[White "Aemulus20"]
[Black "CzechmVIII"]
[Result "1-0"]
[WhiteElo "2554"]
[BlackElo "2245"]
[TimeControl "180+1"]
[EndTime "10:07:11 PST"]
[Termination "Aemulus20 won by resignation"]

1. e4 {[%clk 0:02:59.9]} 1... c5 {[%clk 0:03:00]} 2. Nf3 {[%clk 0:02:56.5]} 2...
d6 {[%clk 0:03:00.1]} 3. d4 {[%clk 0:02:56.9]} 3... cxd4 {[%clk 0:03:01]} 4.
Nxd4 {[%clk 0:02:56.4]} 4... Nf6 {[%clk 0:03:01.2]} 5. Nc3 {[%clk 0:02:56.8]}
5... g6 {[%clk 0:03:01.6]} 6. Be2 {[%clk 0:02:55.4]} 6... Bg7 {[%clk 0:03:01.5]}
7. O-O {[%clk 0:02:55.8]} 7... Nc6 {[%clk 0:03:00.9]} 8. Kh1 {[%clk 0:02:55.5]}
8... Nxd4 {[%clk 0:02:58.6]} 9. Qxd4 {[%clk 0:02:54.9]} 9... O-O {[%clk
0:02:59.1]} 10. Qd3 {[%clk 0:02:53.3]} 10... Be6 {[%clk 0:02:55.5]} 11. f4
{[%clk 0:02:51.9]} 11... Rc8 {[%clk 0:02:55.6]} 12. Be3 {[%clk 0:02:45.3]} 12...
Bc4 {[%clk 0:02:40.2]} 13. Qd2 {[%clk 0:02:45.3]} 13... Bxe2 {[%clk 0:02:40.1]}
14. Qxe2 {[%clk 0:02:46.2]} 14... a6 {[%clk 0:02:34.4]} 15. Bd4 {[%clk
0:02:38.5]} 15... Re8 {[%clk 0:02:13.3]} 16. Rad1 {[%clk 0:02:35.9]} 16... Qa5
{[%clk 0:02:06.6]} 17. e5 {[%clk 0:02:30.3]} 17... Nd5 {[%clk 0:01:40.5]} 18.
Qf3 {[%clk 0:01:28.7]} 18... Nxc3 {[%clk 0:01:32.3]} 19. Bxc3 {[%clk 0:01:29.6]}
19... Rxc3 {[%clk 0:01:08.4]} 20. Qxc3 {[%clk 0:01:27.4]} 20... Qxc3 {[%clk
0:01:08.5]} 21. bxc3 {[%clk 0:01:28.3]} 21... dxe5 {[%clk 0:01:08.9]} 22. fxe5
{[%clk 0:01:27.7]} 22... Bxe5 {[%clk 0:01:09.1]} 23. Rd7 {[%clk 0:01:26.9]}
23... Bxc3 {[%clk 0:00:47.1]} 24. Rxb7 {[%clk 0:01:25.8]} 24... Bf6 {[%clk
0:00:47]} 25. c4 {[%clk 0:01:20.2]} 25... Rc8 {[%clk 0:00:43.5]} 26. Rc1 {[%clk
0:01:20]} 26... Rc5 {[%clk 0:00:41.6]} 27. Rb6 {[%clk 0:01:06.8]} 27... Bg5
{[%clk 0:00:29.4]} 28. Rc2 {[%clk 0:01:03]} 28... Be3 {[%clk 0:00:22.8]} 29.
Rxa6 {[%clk 0:00:56.7]} 29... Rf5 {[%clk 0:00:22.8]} 30. g3 {[%clk 0:00:55.2]}
30... g5 {[%clk 0:00:19.6]} 31. Kg2 {[%clk 0:00:36.8]} 31... g4 {[%clk
0:00:19.5]} 32. Ra8+ {[%clk 0:00:28.2]} 32... Kg7 {[%clk 0:00:19.1]} 33. a4
{[%clk 0:00:27.3]} 33... Bc5 {[%clk 0:00:10.9]} 34. Ra5 {[%clk 0:00:24.3]} 34...
Kf6 {[%clk 0:00:08.9]} 35. Rb5 {[%clk 0:00:24.3]} 35... Ke6 {[%clk 0:00:07.5]}
36. Rd2 {[%clk 0:00:23.1]} 36... Re5 {[%clk 0:00:06.3]} 37. a5 {[%clk
0:00:21.8]} 37... Re1 {[%clk 0:00:04.8]} 38. Rxc5 {[%clk 0:00:17.7]} 1-0